fUST/lending_fUST_20251229
["ID","MTS","AMOUNT","RATE_DAILY","PERIOD"]
[400017395,1767023443257,-507.26557414,0.00019178,2]
[400017396,1767023443266,-500.0,0.00019178,2]
[400017397,1767023443276,-320.62728522,0.00019178,2]
[400017398,1767023443285,-397.08280438,0.00019178,2]
[400017399,1767023443294,-208.47163128,0.00019178,2]
[400017400,1767023443303,-426.17029981,0.00019178,2]
[400017401,1767023443312,-480.0,0.00019178,2]
[400017402,1767023443321,-472.97678502,0.00019178,2]
[400017403,1767023443331,-500.0,0.00019178,2]
[400017404,1767023443341,-460.71443357,0.00019178,2]
[400017405,1767023443350,-380.96173072,0.00019178,2]
[400017406,1767023443359,-247.7999855,0.00019178,2]
[400017407,1767023443369,-276.96921568,0.00019178,2]
[400017408,1767023443378,-288.92186598,0.00019178,2]
[400017409,1767023443387,-250.41947489,0.00019178,2]
[400017410,1767023443397,-429.68058131,0.00019178,2]
[400017411,1767023443406,-500.0,0.00019178,2]
[400017412,1767023443415,-500.0,0.00019178,2]
[400017413,1767023443425,-476.97803324,0.00019178,2]
[400017414,1767023443434,-479.8863713,0.00019178,2]
[400017415,1767023443444,-460.77258881,0.00019178,2]
[400017416,1767023443572,-500.0,0.00019178,2]
[400017417,1767023443582,-413.5855328,0.00019178,2]
[400017418,1767023443592,-500.0,0.00019178,2]
[400017419,1767023443601,-185.23037313,0.00019178,2]
[400017420,1767023443611,-264.5012368,0.00019178,2]
[400017421,1767023443620,-361.59023769,0.00019178,2]
[400017422,1767023443629,-199.94677936,0.00019178,2]
[400017423,1767023443639,-464.71326591,0.00019178,2]
[400017424,1767023443648,-251.01134055,0.00019178,2]
[400017425,1767023443658,-235.4861929,0.00019178,2]
[400017426,1767023443667,-394.44798284,0.00019178,2]
[400017427,1767023443676,-248.87860646,0.00019178,2]
[400017428,1767023443685,-172.47455784,0.00019178,2]
[400017429,1767023443694,-419.48502169,0.00019178,2]
[400017430,1767023443704,-305.52353352,0.00019178,2]
[400017431,1767023443714,-398.66824558,0.00019178,2]
[400017432,1767023443723,-380.6213759,0.00019178,2]
[400017433,1767023443732,-463.44162143,0.00019178,2]
[400017434,1767023443742,-500.0,0.00019178,2]
[400017435,1767023443752,-208.13778615,0.00019178,2]
[400017436,1767023443761,-393.93519273,0.00019178,2]
[400017437,1767023443771,-262.88897779,0.00019178,2]
[400017438,1767023443780,-339.11993172,0.00019178,2]
[400017439,1767023443789,-928.38,0.00019178,2]
[400017440,1767023443798,-1585.9,0.00019178,2]
[400017441,1767023443807,-1111.48,0.00019178,2]
[400017442,1767023443817,-471.93365652,0.00019178,2]
[400017443,1767023443826,-219.25366099,0.00019178,2]
[400017444,1767023443835,-275.42632348,0.00019178,2]
[400017445,1767023443844,-488.22762557,0.00019178,2]
[400017446,1767023443853,-621.07135702,0.00019178,2]
[400017447,1767023443862,-500.0,0.00019178,2]
[400017448,1767023443871,-1867.66,0.00019178,2]
[400017449,1767023443881,-500.0,0.00019178,2]
[400017450,1767023443891,-378.82197893,0.00019178,2]
[400017451,1767023443900,-452.63889928,0.00019178,2]
[400017452,1767023443909,-385.14357929,0.00019178,2]
[400017453,1767023443918,-262.68140088,0.00019178,2]
[400017454,1767023443928,-500.0,0.00019178,2]
[400017455,1767023443937,-174.43765319,0.00019178,2]
[400017456,1767023443947,-500.0,0.00019178,2]
[400017457,1767023443956,-441.07486283,0.00019178,2]
[400017458,1767023443966,-576.74851698,0.00019178,2]
[400017459,1767023443975,-504.68438666,0.00019178,2]
[400017460,1767023443985,-500.0,0.00019178,2]
[400017461,1767023443994,-264.52877309,0.00019178,2]
[400017462,1767023444004,-476.5122698,0.00019178,2]
[400017463,1767023444013,-213.22941767,0.00019178,2]
[400017464,1767023444022,-289.91132384,0.00019178,2]
[400017466,1767023444036,-463.66887211,0.00019178,2]
[400017468,1767023444045,-485.13,0.00019178,2]
[400017469,1767023444055,-463.8590192,0.00019178,2]
[400017470,1767023444066,-449.17785108,0.00019178,2]
[400017472,1767023444077,-475.74346308,0.00019178,2]
[400017474,1767023444086,-731.41,0.00019178,2]
[400017476,1767023444097,-161.18946542,0.00019178,2]
[400017477,1767023444108,-493.05979913,0.00019178,2]
[400017479,1767023444117,-522.88825418,0.00019178,2]
[400017481,1767023444127,-574.48534634,0.00019178,2]
[400017483,1767023444136,-500.0,0.00019178,2]
[400017485,1767023444145,-500.0,0.00019178,2]
[400017487,1767023444154,-1960.08,0.00019178,2]
[400017489,1767023444163,-184.88251798,0.00019178,2]
[400017491,1767023444172,-173.42928672,0.00019178,2]
[400017493,1767023444182,-404.40678334,0.00019178,2]
[400017495,1767023444191,-496.32975888,0.00019178,2]
[400017497,1767023444200,-244.19042592,0.00019178,2]
[400017499,1767023444209,-464.19137506,0.00019178,2]
[400017501,1767023444218,-275.38899138,0.00019178,2]
[400017503,1767023444227,-345.23126733,0.00019178,2]
[400017505,1767023444236,-250.76892888,0.00019178,2]
[400017507,1767023444245,-441.85119835,0.00019178,2]
[400017509,1767023444254,-348.06819212,0.00019178,2]
[400017511,1767023444263,-354.63854456,0.00019178,2]
[400017513,1767023444271,-583.56068195,0.00019178,2]
[400017515,1767023444280,-299.9120085,0.00019178,2]
[400017517,1767023444289,-253.53306599,0.00019178,2]
[400017519,1767023444299,-416.22411128,0.00019178,2]
[400017521,1767023444308,-478.48389396,0.00019178,2]
[400017522,1767023444317,-502.66559039,0.00019178,2]
[400017525,1767023444326,-231.78420349,0.00019178,2]
[400017526,1767023444335,-320.1998631,0.00019178,2]
[400017528,1767023444346,-286.86271311,0.00019178,2]
[400017530,1767023444355,-243.7655413,0.00019178,2]
[400017532,1767023444365,-482.00582969,0.00019178,2]
[400017534,1767023444374,-245.93524782,0.00019178,2]
[400017536,1767023444384,-439.14977885,0.00019178,2]
[400017538,1767023444393,-223.12119079,0.00019178,2]
[400017541,1767023444402,-1306.39,0.00019178,2]
[400017542,1767023444411,-2052.28,0.00019178,2]
[400017544,1767023444420,-500.0,0.00019178,2]
[400017546,1767023444429,-362.31823846,0.00019178,2]
[400017548,1767023444438,-220.40876257,0.00019178,2]
[400017550,1767023444448,-200.33695249,0.00019178,2]
[400017552,1767023444457,-225.77006582,0.00019178,2]
[400017554,1767023444467,-500.0,0.00019178,2]
[400017556,1767023444475,-475.56578252,0.00019178,2]
[400017558,1767023444485,-1848.85,0.00019178,2]
[400017560,1767023444494,-595.06230155,0.00019178,2]
[400017562,1767023444503,-500.0,0.00019178,2]
[400017565,1767023444513,-151.0,0.00019178,2]
[400017567,1767023444522,-151.0,0.00019178,2]
[400017569,1767023444531,-167.933848,0.00019178,2]
[400017571,1767023444540,-156.233766,0.00019178,2]
[400017572,1767023444550,-151.0,0.00019178,2]
[400017574,1767023444559,-151.0,0.00019178,2]
[400017576,1767023444568,-151.0,0.00019178,2]
[400017578,1767023444578,-151.0,0.00019178,2]
[400017580,1767023444590,-151.0,0.00019178,2]
[400017582,1767023444600,-151.0,0.00019178,2]
[400017584,1767023444609,-151.0,0.00019178,2]
[400017586,1767023444618,-151.0,0.00019178,2]
[400017588,1767023444627,-151.0,0.00019178,2]
[400017590,1767023444637,-151.0,0.00019178,2]
[400017592,1767023444646,-307.101899,0.00019178,2]
[400017594,1767023444656,-307.101899,0.00019178,2]
[400017596,1767023444665,-396.992,0.00019178,2]
[400017598,1767023444674,-396.992,0.00019178,2]
[400017600,1767023444682,-151.0,0.00019178,2]
[400017602,1767023444692,-396.992,0.00019178,2]
[400017604,1767023444701,-396.992,0.00019178,2]
[400017606,1767023444710,-151.0,0.00019178,2]
[400017608,1767023444719,-151.0,0.00019178,2]
[400017610,1767023444728,-151.0,0.00019178,2]
[400017612,1767023444737,-151.0,0.00019178,2]
[400017614,1767023444748,-151.0,0.00019178,2]
[400017615,1767023444757,-151.0,0.00019178,2]
[400017617,1767023444767,-151.0,0.00019178,2]
[400017619,1767023444776,-151.0,0.00019178,2]
[400017621,1767023444786,-151.0,0.00019178,2]
[400017623,1767023444795,-151.0,0.00019178,2]
[400017625,1767023444804,-151.0,0.00019178,2]
[400017627,1767023444814,-151.0,0.00019178,2]
[400017629,1767023444823,-153.308726,0.00019178,2]
[400017631,1767023444832,-153.304838,0.00019178,2]
[400017633,1767023444841,-151.88974,0.00019178,2]
[400017635,1767023444851,-151.88974,0.00019178,2]
[400017637,1767023444859,-151.88974,0.00019178,2]
[400017638,1767023444868,-151.88974,0.00019178,2]
[400017641,1767023444878,-151.88974,0.00019178,2]
[400017643,1767023444887,-151.88974,0.00019178,2]
[400017644,1767023444896,-151.88974,0.00019178,2]
[400017646,1767023444906,-151.88974,0.00019178,2]
[400017648,1767023444915,-151.0,0.00019178,2]
[400017650,1767023444924,-151.0,0.00019178,2]
[400017652,1767023444933,-151.0,0.00019178,2]
[400017654,1767023444943,-151.0,0.00019178,2]
[400017656,1767023444952,-151.0,0.00019178,2]
[400017658,1767023444962,-151.0,0.00019178,2]
[400017660,1767023444971,-151.0,0.00019178,2]
[400017662,1767023444980,-151.0,0.00019178,2]
[400017664,1767023444989,-1629.988117,0.00019178,2]
[400017666,1767023444998,-1629.988117,0.00019178,2]
[400017668,1767023445007,-1629.988117,0.00019178,2]
[400017670,1767023445016,-1629.988117,0.00019178,2]
[400017672,1767023445026,-1629.988117,0.00019178,2]
[400017673,1767023445038,-1629.988117,0.00019178,2]
[400017674,1767023445047,-1629.988117,0.00019178,2]
[400017675,1767023445056,-1629.988117,0.00019178,2]
[400017676,1767023445067,-151.0,0.00019178,2]
[400017677,1767023445076,-151.0,0.00019178,2]
[400017678,1767023445086,-204.55178,0.00019178,2]
[400017679,1767023445096,-204.55178,0.00019178,2]
[400017680,1767023445106,-204.55178,0.00019178,2]
[400017681,1767023445115,-204.55178,0.00019178,2]
[400017682,1767023445124,-204.55178,0.00019178,2]
[400017683,1767023445133,-204.55178,0.00019178,2]
[400017684,1767023445143,-204.55178,0.00019178,2]
[400017686,1767023445152,-204.55178,0.00019178,2]
[400017688,1767023445161,-172.576134,0.00019178,2]
[400017690,1767023445171,-394.448318,0.00019178,2]
[400017692,1767023445180,-394.448318,0.00019178,2]
[400017694,1767023445189,-394.448318,0.00019178,2]
[400017696,1767023445199,-394.448318,0.00019178,2]
[400017698,1767023445208,-394.448318,0.00019178,2]
[400017700,1767023445217,-394.448318,0.00019178,2]
[400017702,1767023445226,-394.448318,0.00019178,2]
[400017704,1767023445236,-394.448318,0.00019178,2]
[400017706,1767023445246,-151.0,0.00019178,2]
[400017708,1767023445255,-151.0,0.00019178,2]
[400017710,1767023445265,-151.0,0.00019178,2]
[400017712,1767023445274,-151.0,0.00019178,2]
[400017714,1767023445283,-151.0,0.00019178,2]
[400017716,1767023445292,-151.0,0.00019178,2]
[400017718,1767023445302,-174.891654,0.00019178,2]
[400017720,1767023445311,-151.0,0.00019178,2]
[400017722,1767023445321,-174.891654,0.00019178,2]
[400017723,1767023445330,-174.891654,0.00019178,2]
[400017724,1767023445339,-174.891654,0.00019178,2]
[400017725,1767023445348,-151.0,0.00019178,2]
[400017726,1767023445358,-151.0,0.00019178,2]
[400017727,1767023445368,-174.891654,0.00019178,2]
[400017728,1767023445377,-174.891654,0.00019178,2]
[400017729,1767023445386,-151.0,0.00019178,2]
[400017730,1767023445395,-151.0,0.00019178,2]
[400017731,1767023445405,-151.0,0.00019178,2]
[400017732,1767023445414,-151.0,0.00019178,2]
[400017733,1767023445423,-174.891654,0.00019178,2]
[400017734,1767023445433,-174.891654,0.00019178,2]
[400017735,1767023445442,-197.794008,0.00019178,2]
[400017736,1767023445451,-197.794008,0.00019178,2]
[400017737,1767023445461,-197.794008,0.00019178,2]
[400017738,1767023445470,-197.794008,0.00019178,2]
[400017739,1767023445479,-197.794008,0.00019178,2]
[400017740,1767023445488,-197.794008,0.00019178,2]
[400017741,1767023445498,-197.794008,0.00019178,2]
[400017742,1767023445507,-197.794008,0.00019178,2]
[400017743,1767023445516,-151.0,0.00019178,2]
[400017744,1767023445525,-155.416884,0.00019178,2]
[400017745,1767023445534,-509.772071,0.00019178,2]
[400017746,1767023445543,-509.772071,0.00019178,2]
[400017747,1767023445552,-151.0,0.00019178,2]
[400017748,1767023445562,-151.0,0.00019178,2]
[400017749,1767023445571,-509.772071,0.00019178,2]
[400017750,1767023445580,-509.772071,0.00019178,2]
[400017751,1767023445590,-246.945504,0.00019178,2]
[400017752,1767023445599,-509.772071,0.00019178,2]
[400017753,1767023445608,-509.772071,0.00019178,2]
[400017754,1767023445617,-509.772071,0.00019178,2]
[400017755,1767023445626,-509.772071,0.00019178,2]
[400017756,1767023445636,-156.794228,0.00019178,2]
[400017757,1767023445645,-151.0,0.00019178,2]
[400017758,1767023445655,-160.28991,0.00019178,2]
[400017759,1767023445664,-160.28991,0.00019178,2]
[400017760,1767023445673,-160.28991,0.00019178,2]
[400017761,1767023445683,-160.28991,0.00019178,2]
[400017762,1767023445692,-160.28991,0.00019178,2]
[400017763,1767023445701,-160.28991,0.00019178,2]
[400017764,1767023445710,-160.28991,0.00019178,2]
[400017765,1767023445719,-160.28991,0.00019178,2]
[400017766,1767023445729,-151.0,0.00019178,2]
[400017767,1767023445739,-151.0,0.00019178,2]
[400017768,1767023445748,-151.0,0.00019178,2]
[400017769,1767023445757,-151.0,0.00019178,2]
[400017770,1767023445766,-151.0,0.00019178,2]
[400017771,1767023445775,-151.0,0.00019178,2]
[400017772,1767023445784,-151.0,0.00019178,2]
[400017773,1767023445795,-151.0,0.00019178,2]
[400017774,1767023445803,-151.0,0.00019178,2]
[400017775,1767023445812,-151.0,0.00019178,2]
[400017776,1767023445822,-151.0,0.00019178,2]
[400017777,1767023445830,-151.0,0.00019178,2]
[400017778,1767023445839,-151.0,0.00019178,2]
[400017779,1767023445849,-151.0,0.00019178,2]
[400017780,1767023445857,-291.704668,0.00019178,2]
[400017781,1767023445867,-223.316494,0.00019178,2]
[400017782,1767023445876,-151.0,0.00019178,2]
[400017783,1767023445885,-151.0,0.00019178,2]
[400017784,1767023445894,-151.0,0.00019178,2]
[400017785,1767023445903,-151.0,0.00019178,2]
[400017786,1767023445912,-151.0,0.00019178,2]
[400017787,1767023445921,-226.600285,0.00019178,2]
[400017788,1767023445930,-151.0,0.00019178,2]
[400017789,1767023445940,-151.0,0.00019178,2]
[400017790,1767023445949,-151.0,0.00019178,2]
[400017791,1767023445958,-151.0,0.00019178,2]
[400017792,1767023445969,-151.0,0.00019178,2]
[400017793,1767023445980,-151.0,0.00019178,2]
[400017794,1767023445990,-151.0,0.00019178,2]
[400017795,1767023445999,-151.0,0.00019178,2]
[400017796,1767023446009,-249.18,0.00019178,2]
[400017797,1767023446018,-151.0,0.00019178,2]
[400017798,1767023446032,-151.0,0.00019178,2]
[400017799,1767023446041,-249.44556,0.00019178,2]
[400017800,1767023446050,-151.0,0.00019178,2]
[400017801,1767023446060,-151.0,0.00019178,2]
[400017802,1767023446070,-151.0,0.00019178,2]
[400017803,1767023446079,-223.767963,0.00019178,2]
[400017804,1767023446088,-262.001019,0.00019178,2]
[400017805,1767023446098,-151.0,0.00019178,2]
[400017806,1767023446107,-151.2146,0.00019178,2]
[400017807,1767023446117,-151.0,0.00019178,2]
[400017808,1767023446126,-151.0,0.00019178,2]
[400017809,1767023446135,-298.968903,0.00019178,2]
[400017810,1767023446144,-151.0,0.00019178,2]
[400017811,1767023446153,-151.0,0.00019178,2]
[400017812,1767023446162,-157.035377,0.00019178,2]
[400017813,1767023446171,-151.0,0.00019178,2]
[400017814,1767023446180,-220.073602,0.00019178,2]
[400017815,1767023446189,-151.0,0.00019178,2]
[400017816,1767023446198,-151.0,0.00019178,2]
[400017817,1767023446207,-151.0,0.00019178,2]
[400017818,1767023446217,-151.0,0.00019178,2]
[400017819,1767023446226,-151.0,0.00019178,2]
[400017820,1767023446235,-151.0,0.00019178,2]
[400017821,1767023446244,-151.0,0.00019178,2]
[400017822,1767023446253,-153.87358,0.00019178,2]
[400017823,1767023446363,-9056.49,0.000192,2]
[400017824,1767023446374,-337.83761728,0.00019273,2]
[400017825,1767023446384,-2116.6,0.00019308,3]
[400017826,1767023446393,-1058.3,0.00019308,3]
[400017827,1767023446402,-529.16,0.00019308,3]
[400017828,1767023446411,-256.964808,0.00019452,2]
[400017829,1767023446421,-7629.338496,0.00019452,2]
[400017830,1767023446430,-2714.33860453,0.00019452,2]
[400017831,1767023446439,-501.28701467,0.00019452,2]
[400017832,1767023446449,-1000.0,0.00019452,2]
[400017833,1767023446458,-500.0,0.00019452,2]
[400017834,1767023446468,-497.36160661,0.00019452,2]
[400017835,1767023446477,-500.0,0.00019452,2]
[400017836,1767023446487,-151.0,0.00019452,2]
[400017837,1767023446497,-438.32011162,0.00019452,2]
[400017838,1767023446506,-506.61072878,0.00019452,2]
[400017839,1767023446515,-594.68,0.00019452,2]
[400017840,1767023446525,-500.0,0.00019452,2]
[400017841,1767023446534,-1000.0,0.00019452,2]
[400017842,1767023446543,-736.92,0.00019452,2]
[400017843,1767023446553,-836.09,0.00019452,2]
[400017844,1767023446562,-193.714378,0.00019452,2]
[400017846,1767023446572,-518.97313957,0.00019452,2]
[400017848,1767023446581,-151.0,0.00019452,2]
[400017850,1767023446590,-151.0,0.00019452,2]
[400017852,1767023446600,-151.0,0.00019452,2]
[400017854,1767023446609,-1154.01,0.00019452,2]
[400017856,1767023446619,-151.0,0.00019452,2]
[400017858,1767023446628,-521.16197729,0.00019452,2]
[400017860,1767023446637,-151.0,0.00019452,2]
[400017862,1767023446646,-500.0,0.00019452,2]
[400017864,1767023446655,-465.31557181,0.00019452,2]
[400017866,1767023446665,-500.0,0.00019452,2]
[400017868,1767023446674,-500.0,0.00019452,2]
[400017870,1767023446683,-307.101899,0.00019452,2]
[400017872,1767023446692,-396.992,0.00019452,2]
[400017874,1767023446702,-574.98627618,0.00019452,2]
[400017876,1767023446711,-396.992,0.00019452,2]
[400017878,1767023446720,-681.99,0.00019452,2]
[400017880,1767023446730,-396.992,0.00019452,2]
[400017882,1767023446739,-151.0,0.00019452,2]
[400017884,1767023446748,-151.0,0.00019452,2]
[400017886,1767023446758,-151.0,0.00019452,2]
[400017888,1767023446767,-264.111661,0.00019452,2]
[400017890,1767023446777,-151.0,0.00019452,2]
[400017892,1767023446786,-151.0,0.00019452,2]
[400017894,1767023446795,-427.64161233,0.00019452,2]
[400017896,1767023446805,-151.88974,0.00019452,2]
[400017898,1767023446814,-151.88974,0.00019452,2]
[400017900,1767023446823,-151.88974,0.00019452,2]
[400017902,1767023446832,-151.88974,0.00019452,2]
[400017904,1767023446841,-286.81530226,0.00019452,2]
[400017906,1767023446850,-414.98358228,0.00019452,2]
[400017908,1767023446859,-1989.21,0.00019452,2]
[400017910,1767023446868,-151.0,0.00019452,2]
[400017912,1767023446877,-500.0,0.00019452,2]
[400017914,1767023446886,-500.0,0.00019452,2]
[400017916,1767023446896,-151.0,0.00019452,2]
[400017918,1767023446906,-500.0,0.00019452,2]
[400017920,1767023446915,-151.0,0.00019452,2]
[400017922,1767023446924,-351.74831702,0.00019452,2]
[400017924,1767023446934,-500.0,0.00019452,2]
[400017926,1767023446943,-613.72905616,0.00019452,2]
[400017928,1767023446952,-461.32492869,0.00019452,2]
[400017930,1767023446961,-359.90731785,0.00019452,2]
[400017932,1767023446971,-355.06711702,0.00019452,2]
[400017934,1767023446980,-382.15781125,0.00019452,2]
[400017936,1767023446990,-386.69760475,0.00019452,2]
[400017938,1767023446999,-408.04164553,0.00019452,2]
[400017940,1767023447008,-384.42284736,0.00019452,2]
[400017942,1767023447017,-570.03107926,0.00019452,2]
[400017944,1767023447028,-438.91001104,0.00019452,2]
[400017946,1767023447037,-1629.988117,0.00019452,2]
[400017948,1767023447046,-1629.988117,0.00019452,2]
[400017950,1767023447055,-359.62185946,0.00019452,2]
[400017952,1767023447065,-1629.988117,0.00019452,2]
[400017954,1767023447074,-500.0,0.00019452,2]
[400017956,1767023447084,-276.66865437,0.00019452,2]
[400017958,1767023447094,-1629.988117,0.00019452,2]
[400017960,1767023447105,-151.0,0.00019452,2]
[400017962,1767023447114,-391.47361695,0.00019452,2]
[400017964,1767023447123,-204.55178,0.00019452,2]
[400017966,1767023447132,-500.0,0.00019452,2]
[400017968,1767023447142,-298.66749138,0.00019452,2]
[400017970,1767023447151,-204.55178,0.00019452,2]
[400017972,1767023447161,-204.55178,0.00019452,2]
[400017974,1767023447170,-204.55178,0.00019452,2]
[400017976,1767023447179,-394.448318,0.00019452,2]
[400017978,1767023447188,-394.448318,0.00019452,2]
[400017980,1767023447197,-394.448318,0.00019452,2]
[400017982,1767023447207,-394.448318,0.00019452,2]
[400017984,1767023447216,-500.0,0.00019452,2]
[400017986,1767023447225,-500.0,0.00019452,2]
[400017988,1767023447234,-151.0,0.00019452,2]
[400017990,1767023447244,-151.0,0.00019452,2]
[400017992,1767023447253,-500.0,0.00019452,2]
[400017994,1767023447264,-151.0,0.00019452,2]
[400017996,1767023447273,-174.891654,0.00019452,2]
[400017998,1767023447285,-174.891654,0.00019452,2]
[400018000,1767023447295,-151.0,0.00019452,2]
[400018003,1767023447304,-174.891654,0.00019452,2]
[400018005,1767023447314,-151.0,0.00019452,2]
[400018007,1767023447323,-173.074121,0.00019452,2]
[400018009,1767023447333,-174.891654,0.00019452,2]
[400018011,1767023447342,-576.25541193,0.00019452,2]
[400018013,1767023447350,-314.94131652,0.00019452,2]
[400018014,1767023447360,-197.794008,0.00019452,2]
[400018016,1767023447369,-197.794008,0.00019452,2]
[400018019,1767023447378,-500.0,0.00019452,2]
[400018021,1767023447388,-197.794008,0.00019452,2]
[400018023,1767023447397,-197.794008,0.00019452,2]
[400018025,1767023447406,-500.0,0.00019452,2]
[400018027,1767023447415,-509.772071,0.00019452,2]
[400018029,1767023447424,-151.0,0.00019452,2]
[400018031,1767023447434,-509.772071,0.00019452,2]
[400018033,1767023447443,-509.772071,0.00019452,2]
[400018035,1767023447453,-509.772071,0.00019452,2]
[400018037,1767023447462,-160.28991,0.00019452,2]
[400018039,1767023447472,-160.28991,0.00019452,2]
[400018041,1767023447482,-160.28991,0.00019452,2]
[400018043,1767023447494,-160.28991,0.00019452,2]
[400018045,1767023447503,-295.24883752,0.00019452,2]
[400018047,1767023447513,-500.0,0.00019452,2]
[400018049,1767023447523,-168.803854,0.00019452,2]
[400018051,1767023447532,-151.0,0.00019452,2]
[400018053,1767023447542,-510.00718018,0.00019452,2]
[400018055,1767023447551,-10371.66,0.00019452,2]
[400018057,1767023447560,-151.0,0.00019452,2]
[400018059,1767023447570,-151.0,0.00019452,2]
[400018060,1767023447579,-151.0,0.00019452,2]
[400018062,1767023447588,-151.0,0.00019452,2]
[400018064,1767023447597,-157.128325,0.00019452,2]
[400018066,1767023447607,-582.92938711,0.00019452,2]
[400018068,1767023447616,-500.0,0.00019452,2]
[400018069,1767023447626,-500.0,0.00019452,2]
[400018071,1767023447635,-500.0,0.00019452,2]
[400018073,1767023447644,-422.86389252,0.00019452,2]
[400018075,1767023447653,-500.0,0.00019452,2]
[400018077,1767023447662,-151.0,0.00019452,2]
[400018079,1767023447671,-445.55316345,0.00019452,2]
[400018081,1767023447680,-214.384232,0.00019452,2]
[400018083,1767023447690,-500.0,0.00019452,2]
[400018085,1767023447700,-928.38,0.00019452,2]
[400018087,1767023447709,-151.0,0.00019452,2]
[400018089,1767023447718,-1585.9,0.00019452,2]
[400018091,1767023447727,-1111.48,0.00019452,2]
[400018093,1767023447738,-500.0,0.00019452,2]
[400018095,1767023447747,-1867.66,0.00019452,2]
[400018097,1767023447756,-183.63537504,0.00019452,2]
[400018099,1767023447765,-500.0,0.00019452,2]
[400018101,1767023447774,-500.0,0.00019452,2]
[400018103,1767023447784,-500.0,0.00019452,2]
[400018105,1767023447795,-731.41,0.00019452,2]
[400018107,1767023447804,-500.0,0.00019452,2]
[400018109,1767023447814,-500.0,0.00019452,2]
[400018111,1767023447824,-1960.08,0.00019452,2]
[400018113,1767023447833,-151.0,0.00019452,2]
[400018114,1767023447844,-1306.39,0.00019452,2]
[400018116,1767023447854,-2052.28,0.00019452,2]
[400018117,1767023447864,-500.0,0.00019452,2]
[400018119,1767023447874,-151.0,0.00019452,2]
[400018120,1767023447884,-500.0,0.00019452,2]
[400018122,1767023447893,-151.0,0.00019452,2]
[400018124,1767023447902,-151.0,0.00019452,2]
[400018126,1767023447911,-1848.85,0.00019452,2]
[400018127,1767023447921,-1041.66666667,0.00019459,2]
[400018129,1767023447930,-295.55581109,0.00019557,2]
[400018131,1767023447940,-27721.11,0.000197,3]
[400018133,1767023447949,-151.0,0.000197,2]
[400018135,1767023447958,-151.0,0.000197,2]
[400018137,1767023447967,-251.745364,0.000197,2]
[400018138,1767023447976,-2714.33860453,0.00019726,2]
[400018139,1767023447985,-1000.0,0.00019726,2]
[400018140,1767023447994,-500.0,0.00019726,2]
[400018141,1767023448003,-500.0,0.00019726,2]
[400018142,1767023448013,-151.0,0.00019726,2]
[400018143,1767023448024,-594.68,0.00019726,2]
[400018145,1767023448033,-500.0,0.00019726,2]
[400018147,1767023448042,-1000.0,0.00019726,2]
[400018148,1767023448052,-736.92,0.00019726,2]
[400018150,1767023448063,-836.09,0.00019726,2]
[400018152,1767023448072,-151.0,0.00019726,2]
[400018154,1767023448082,-151.0,0.00019726,2]
[400018155,1767023448093,-254.98888,0.00019726,2]
[400018157,1767023448103,-1154.01,0.00019726,2]
[400018159,1767023448112,-232.36787,0.00019726,2]
[400018161,1767023448122,-151.0,0.00019726,2]
[400018162,1767023448131,-500.0,0.00019726,2]
[400018163,1767023448140,-500.0,0.00019726,2]
[400018164,1767023448150,-500.0,0.00019726,2]
[400018165,1767023448159,-307.101899,0.00019726,2]
[400018166,1767023448168,-307.101899,0.00019726,2]